fUST/lending_fUST_20240527
["ID","MTS","AMOUNT","RATE_DAILY","PERIOD"]
[328043213,1716814238014,-5590.66485961,0.00022709,2]
[328043214,1716814238024,-192.33,0.00022987,3]
[328043215,1716814238033,-1217.68102459,0.00022995,2]
[328043216,1716814238043,-307.02197034,0.00022995,2]
[328043217,1716814238052,-1043.8924433,0.00022995,2]
[328043218,1716814238062,-420.0,0.00022996,2]
[328043219,1716814238071,-382.07763527,0.00022996,2]
[328043220,1716814238081,-500.0,0.00022996,2]
[328043221,1716814238091,-500.0,0.00022996,2]
[328043222,1716814238102,-575.0,0.00022996,2]
[328043223,1716814238112,-8005.12123207,0.00022997,2]
[328043224,1716814238121,-3376.24664759,0.00022999,2]
[328043225,1716814238131,-224.73843168,0.00022999,2]
[328043226,1716814238140,-365.62120388,0.00022999,2]
[328043227,1716814238150,-700.6952953,0.00023,2]
[328043228,1716814238160,-4697.73031858,0.00023,2]
[328043229,1716814238169,-7051.52766207,0.00023,2]
[328043230,1716814238179,-179.91566355,0.00023312,2]
[328043231,1716814238188,-521.71519469,0.00023409,2]
[328043232,1716814238198,-836.37406668,0.00023409,2]
[328043233,1716814238208,-156.55408668,0.0002341,2]
[328043234,1716814238218,-395.77460942,0.0002341,2]
[328043235,1716814238227,-42004.14583686,0.00023411,2]
[328043236,1716814238237,-271.86946999,0.00023411,2]
[328043237,1716814238247,-155.1502792,0.00023411,2]
[328043238,1716814238257,-1899.42263675,0.00023411,2]
[328043239,1716814238266,-285.31097948,0.00023411,2]
[328043240,1716814238275,-194.63259414,0.00023411,2]
[328043241,1716814238285,-1223.12532633,0.00023411,2]
[328043242,1716814238298,-4706.0194441,0.00023411,2]
[328043243,1716814238307,-2588.02972394,0.00023411,2]
[328043244,1716814238317,-721.01785375,0.00023412,2]
[328043245,1716814238326,-225.55263445,0.00023412,2]
[328043246,1716814238337,-9406.84773612,0.00023413,2]
[328043247,1716814238348,-151.0,0.00023413,2]
[328043248,1716814238357,-151.0,0.00023413,2]
[328043249,1716814238366,-397.942197,0.00023413,2]
[328043250,1716814238376,-397.942197,0.00023413,2]
[328043251,1716814238386,-813.690124,0.00023413,2]
[328043252,1716814238395,-813.690124,0.00023413,2]
[328043253,1716814238405,-3663.88096187,0.0002362,7]
[328043254,1716814238418,-619.53109834,0.0002362,7]
[328043255,1716814238429,-15066.94442458,0.0002362,7]
[328043256,1716814238441,-565.90470413,0.0002362,7]
[328043257,1716814238457,-2787.50589417,0.0002362,7]
[328043258,1716814238470,-2147.73455586,0.0002362,7]
[328043290,1716814241399,-273.37336231,9.9e-05,2]
[328043292,1716814241410,-239.28829617,0.00022996,2]
[328043294,1716814241420,-577.0,0.0002361,3]
[328043296,1716814241430,-15577.09543958,0.0002362,7]
[328043303,1716814241684,-311.20545213,0.0002362,7]
[328043304,1716814241696,-2822.40981283,0.0002362,7]
[328043305,1716814241708,-12117.57658994,0.0002362,7]
[328043306,1716814241717,-36252.07771011,0.0002362,3]
[328043343,1716814243161,-207.892,0.00023584,2]
[328043344,1716814243171,-5326.25279226,0.0002362,3]
[328043345,1716814243316,-2116.85616365,0.00023609,2]
[328043347,1716814243326,-47309.66949763,0.0002362,3]
[328043349,1716814243336,-151.0,0.0002362,2]
[328043351,1716814243350,-151.0,0.0002362,2]
[328043352,1716814243359,-397.942197,0.0002362,2]
[328043353,1716814243369,-397.942197,0.0002362,2]
[328043354,1716814243379,-813.690124,0.0002362,2]
[328043355,1716814243388,-813.690124,0.0002362,2]
[328043356,1716814243397,-813.690124,0.0002362,2]
[328043357,1716814243407,-813.690124,0.0002362,2]
[328043358,1716814243418,-3782.15,0.00023718,5]
[328043359,1716814243427,-2453.14745713,0.00023718,5]
[328044697,1716814639428,607.94,0.00028,120]
[328044698,1716814668520,607.93,0.00028,120]
[328044738,1716815432445,-345.81337352,9.257e-05,2]
[328044739,1716815432455,-758.41658575,9.351e-05,2]
[328044740,1716815432464,-27.29063545,9.352e-05,2]
[328044741,1716815432475,-128.8276226,9.352e-05,2]
[328044742,1716815432484,-292.60141023,0.00017786,2]
[328044743,1716815432493,-151.0,0.00018146,3]
[328044744,1716815432503,-151.0,0.00018146,2]
[328044745,1716815432512,-685.35873137,0.00018761,2]
[328044746,1716815432521,-150.15566294,0.00018762,2]
[328044747,1716815432531,-3719.74523522,0.00018856,2]
[328044748,1716815432542,-703.7636435,0.00018856,2]
[328044833,1716815438343,-3562.58392509,0.00018856,2]
[328044835,1716815438358,-1790.00061627,0.00018856,2]
[328044837,1716815438370,-868.45,0.00018856,2]
[328044842,1716815438405,-3941.3,0.00018856,2]
[328044969,1716815441890,-4685.26886769,0.00018856,2]
[328044971,1716815441899,-3016.51363608,0.00018857,2]
[328044977,1716815441954,-4886.32667715,0.00018857,2]
[328044978,1716815441963,-1331.04265586,0.00018857,2]
[328045036,1716815443380,-785.81350779,0.00018857,2]
[328045038,1716815443389,-11070.84264273,0.00018858,2]
[328045040,1716815443399,-2109.54099947,0.00018859,2]
[328045042,1716815443408,-250.0,0.00018864,2]
[328045044,1716815443417,-161.21904888,0.000199,2]
[328045046,1716815443426,-264.0,0.0002,2]
[328045048,1716815443435,-1352.0716296,0.0002,2]
[328045050,1716815443445,-1093.22705437,0.00020077,5]
[328045052,1716815443454,-150.15566287,0.00020834,2]
[328045054,1716815443463,-181.51466255,0.00021,2]
[328045056,1716815443472,-150.15566287,0.00022906,2]
[328045058,1716815443481,-6626.52462,0.00023,2]
[328045060,1716815443490,-222.15396699,0.00023608,2]
[328045062,1716815443500,-410.85900029,0.00023608,2]
[328045064,1716815443509,-1888.54769992,0.00023608,2]
[328045066,1716815443518,-1869.93107944,0.00023609,2]
[328045068,1716815443527,-175.65361975,0.00023609,2]
[328045070,1716815443536,-155.93650779,0.00023617,2]
[328045072,1716815443545,-384.66,0.00023707,3]
[328045075,1716815443554,-339.2121941,0.00023715,2]
[328045078,1716815443563,-500.0,0.00023715,2]
[328045082,1716815443573,-500.0,0.00023715,2]
[328045085,1716815443582,-338.38160766,0.00023715,2]
[328045087,1716815443591,-500.0,0.00023715,2]
[328045090,1716815443601,-500.0,0.00023715,2]
[328045092,1716815443610,-500.0,0.00023715,2]
[328045094,1716815443620,-500.0,0.00023715,2]
[328045096,1716815443629,-500.0,0.00023715,2]
[328045098,1716815443638,-500.0,0.00023715,2]
[328045100,1716815443647,-500.0,0.00023715,2]
[328045102,1716815443656,-500.0,0.00023715,2]
[328045104,1716815443666,-500.0,0.00023715,2]
[328045106,1716815443675,-500.0,0.00023715,2]
[328045108,1716815443684,-500.0,0.00023715,2]
[328045110,1716815443693,-500.0,0.00023715,2]
[328045112,1716815443703,-500.0,0.00023715,2]
[328045114,1716815443713,-500.0,0.00023715,2]
[328045116,1716815443726,-500.0,0.00023715,2]
[328045118,1716815443735,-500.0,0.00023715,2]
[328045120,1716815443744,-500.0,0.00023715,2]
[328045122,1716815443755,-500.0,0.00023715,2]
[328045124,1716815443764,-500.0,0.00023715,2]
[328045126,1716815443773,-500.0,0.00023715,2]
[328045128,1716815443782,-172.60405406,0.00023715,2]
[328045130,1716815443791,-787.1858346,0.00023716,2]
[328045175,1716815444569,-1112.23680215,0.00023716,2]
[328045176,1716815444580,-1582.01657908,0.00023716,2]
[328045177,1716815444589,-514.10105523,0.00023716,2]
[328045178,1716815444599,-164.14993741,0.00023717,2]
[328045179,1716815444610,-4284.10762146,0.00023717,2]
[328045180,1716815444619,-151.0,0.00023717,2]
[328045181,1716815444628,-151.0,0.00023717,2]
[328045182,1716815444638,-151.0,0.00023717,2]
[328045183,1716815444647,-241.152887,0.00023717,2]
[328045184,1716815444656,-569.583087,0.00023717,2]
[328045185,1716815444666,-569.583087,0.00023717,2]
[328045186,1716815444675,-569.583087,0.00023717,2]
[328045187,1716815444685,-569.583087,0.00023717,2]
[328045188,1716815444694,-318.353758,0.00023717,2]
[328045189,1716815444703,-318.353758,0.00023717,2]
[328045190,1716815444714,-318.353758,0.00023717,2]
[328045191,1716815444726,-318.353758,0.00023717,2]
[328045192,1716815444736,-4571.95,0.00023717,5]
[328045193,1716815444746,-4571.95,0.00023717,5]
[328045194,1716815444756,-4571.95,0.00023717,5]
[328045195,1716815444766,-4571.95,0.00023717,5]
[328045196,1716815444776,-4571.95,0.00023717,5]
[328045197,1716815444785,-4571.95,0.00023717,5]
[328045198,1716815444799,-4571.95,0.00023717,5]
[328045199,1716815444808,-4571.95,0.00023717,5]
[328045200,1716815444818,-4571.95,0.00023717,5]
[328045201,1716815444828,-4571.95,0.00023717,5]
[328045202,1716815444837,-4571.95,0.00023717,5]
[328045203,1716815444846,-4571.95,0.00023717,5]
[328045204,1716815444856,-4571.95,0.00023717,5]
[328045205,1716815444866,-4571.95,0.00023717,5]
[328045206,1716815444875,-4571.95,0.00023717,5]
[328045207,1716815444886,-4571.95,0.00023717,5]
[328045208,1716815444895,-4571.95,0.00023717,5]
[328045209,1716815444904,-4571.95,0.00023717,5]
[328045210,1716815444913,-4571.95,0.00023717,5]
[328045211,1716815444923,-4571.95,0.00023717,5]
[328045212,1716815444932,-4571.95,0.00023717,5]
[328045214,1716815444942,-4571.95,0.00023717,5]
[328045216,1716815444952,-4571.95,0.00023717,5]
[328045218,1716815444962,-4572.06393972,0.00023717,5]
[328045220,1716815444972,-27839.89446672,0.0002372,7]
[328045222,1716815444982,-21732.49204469,0.0002372,3]
[328045224,1716815444992,-151.0,0.0002372,2]
[328045235,1716815445001,-569.583087,0.0002372,2]
[328045237,1716815445111,-569.583087,0.0002372,2]
[328045239,1716815445120,-318.353758,0.0002372,2]
[328045241,1716815445129,-318.353758,0.0002372,2]
[328045243,1716815445139,-32068.42927755,0.000238,3]
[328045244,1716815445150,-847.98525355,0.00023814,2]
[328045245,1716815445160,-945.99447756,0.00023814,2]
[328045246,1716815445170,-309.70844481,0.00023814,2]
[328045247,1716815445179,-154.95892803,0.00023814,2]
[328045248,1716815445190,-2679.29551735,0.00023814,2]
[328045249,1716815445199,-156.54311054,0.00023816,2]
[328045250,1716815445209,-6312.13845849,0.0002382,7]
[328045251,1716815445219,-151.0,0.0002382,2]
[328045252,1716815445228,-151.0,0.0002382,2]
[328045253,1716815445237,-569.583087,0.0002382,2]
[328045254,1716815445247,-569.583087,0.0002382,2]
[328045255,1716815445256,-569.583087,0.0002382,2]
[328045256,1716815445266,-569.583087,0.0002382,2]
[328045257,1716815445275,-318.353758,0.0002382,2]
[328045258,1716815445284,-318.353758,0.0002382,2]
[328045260,1716815445293,-318.353758,0.0002382,2]
[328045262,1716815445302,-318.353758,0.0002382,2]
[328045264,1716815445311,-3034.6679071,0.0002382,2]
[328045266,1716815445324,-43828.85873182,0.0002382,2]
[328046094,1716816204028,-685.35873137,8.636e-05,2]
[328046095,1716816204196,-1340.40220178,8.637e-05,2]
[328046096,1716816204223,-154.9690062,8.637e-05,2]
[328046097,1716816204249,-1979.63054003,8.637e-05,2]
[328046098,1716816204273,-455.97225656,8.637e-05,2]
[328046099,1716816204298,-836.46602351,8.637e-05,2]
[328046100,1716816204324,-523.24502154,8.638e-05,2]
[328046101,1716816204350,-15227.95621901,8.638e-05,2]
[328046104,1716816562340,4197.0477397,6.5e-05,2]
[328046138,1716816632428,-154.95351395,7.384e-05,2]
[328046140,1716816632438,-316.74549754,7.384e-05,2]
[328046142,1716816632448,-164.30390821,7.384e-05,2]
[328046144,1716816632458,-488.43267025,7.384e-05,2]
[328046146,1716816632467,-7902.84031323,7.385e-05,2]
[328046148,1716816632477,-10520.83000552,7.385e-05,2]
[328046150,1716816632486,-302.64967762,7.385e-05,2]
[328046152,1716816632496,-371.68408208,7.386e-05,2]
[328046154,1716816632505,-2109.54099947,7.386e-05,2]
[328046155,1716816632514,-529.12999576,7.387e-05,2]
[328046157,1716816632524,-154.95351395,7.387e-05,2]
[328046159,1716816632533,-371.5441297,7.388e-05,2]
[328046161,1716816632543,-11070.84264273,7.461e-05,2]
[328046162,1716816632553,-19271.11228777,7.461e-05,2]
[328046163,1716816632562,-2116.85616365,7.462e-05,2]
[328046164,1716816632572,-9570.25477578,7.462e-05,2]
[328046165,1716816632582,-1498.23255871,7.463e-05,2]
[328046166,1716816632592,-685.35873137,7.463e-05,2]
[328046167,1716816632603,-154.95351395,7.463e-05,2]
[328046168,1716816632612,-758.41658575,7.464e-05,2]
[328046169,1716816632621,-281.85841065,7.464e-05,2]
[328046170,1716816632631,-488.43267025,7.465e-05,2]
[328046171,1716816632640,-9839.58572472,7.466e-05,2]
[328046243,1716816639300,-1152.82161356,7.384e-05,2]
[328046245,1716816639310,-49621.25384053,7.466e-05,2]
[328046247,1716816639320,-1044.43060742,7.564e-05,2]
[328046249,1716816639330,-24890.0,7.568e-05,2]
[328046251,1716816639339,-2759.93478101,8.54e-05,2]
[328046253,1716816639350,-365.31563437,8.638e-05,2]
[328046255,1716816639360,-655.65600959,8.639e-05,2]
[328046257,1716816639369,-1340.12846768,8.639e-05,2]
[328046259,1716816639379,-836.26318316,8.639e-05,2]
[328046261,1716816639388,-1979.22122047,8.639e-05,2]
[328046263,1716816639398,-165.05348375,8.639e-05,2]
[328046264,1716816639407,-455.7380922,8.639e-05,2]
[328046266,1716816639417,-521.80087476,8.646e-05,2]
[328046268,1716816639426,-2759.934781,9.145e-05,2]
[328046270,1716816639436,-156.58808866,9.663e-05,2]
[328046273,1716816639446,-2759.934781,9.75e-05,2]
[328046274,1716816639456,-9408.97315609,0.0001,2]
[328046276,1716816639465,-2759.934781,0.00010254,2]
[328046278,1716816639475,-2759.934781,0.00010859,2]
[328046280,1716816639485,-872.67,0.00010959,2]
[328046282,1716816639495,-452.3052543,0.00013699,2]
[328046284,1716816639504,-401.5144823,0.00019178,2]
[328046286,1716816639513,-500.0,0.00019178,2]
[328046288,1716816639523,-500.0,0.00019178,2]
[328046291,1716816639533,-161.78121622,0.00019178,2]
[328046292,1716816639542,-500.0,0.00019178,2]
[328046295,1716816639552,-500.0,0.00019178,2]
[328046297,1716816639562,-500.0,0.00019178,2]
[328046298,1716816639571,-500.0,0.00019178,2]
[328046300,1716816639581,-500.0,0.00019178,2]
[328046301,1716816639590,-500.0,0.00019178,2]
[328046303,1716816639602,-500.0,0.00019178,2]
[328046304,1716816639611,-252.0,0.00020904,2]
[328046305,1716816639619,-15751.8877143,0.00023,7]
[328046306,1716816639629,-10000.0,0.00023,2]
[328046307,1716816639638,-500.0,0.00023287,2]
[328046308,1716816639648,-4283.01850039,0.00023328,2]
[328046309,1716816639658,-500.0,0.00023561,3]
[328046310,1716816639669,-151.0,0.00023719,2]
[328046311,1716816639679,-366.160556,0.00023719,2]
[328046312,1716816639689,-366.160556,0.00023719,2]
[328046313,1716816639700,-151.0,0.00023719,2]
[328046314,1716816639711,-198.971098,0.00023719,2]
[328046315,1716816639723,-198.971098,0.00023719,2]
[328046316,1716816639734,-2000.0,0.00023719,5]
[328046317,1716816639744,-2000.0,0.00023719,5]
[328046318,1716816639755,-2000.0,0.00023719,5]
[328046319,1716816639766,-2000.0,0.00023719,5]
[328046320,1716816639776,-2000.0,0.00023719,5]
[328046321,1716816639786,-2000.0,0.00023719,5]
[328046322,1716816639796,-2000.0,0.00023719,5]
[328046324,1716816639806,-2000.0,0.00023719,5]
[328046326,1716816639816,-2000.0,0.00023719,5]
[328046327,1716816639827,-2000.0,0.00023719,5]
[328046328,1716816639837,-2000.0,0.00023719,5]
[328046330,1716816639848,-2000.0,0.00023719,5]
[328046332,1716816639858,-2000.0,0.00023719,5]
[328046334,1716816639868,-2000.0,0.00023719,5]
[328046336,1716816639878,-2000.0,0.00023719,5]
[328046338,1716816639887,-1602.4167929,0.00023719,5]
[328046340,1716816639897,-61445.54031516,0.0002372,3]
[328046344,1716816639928,-9322.300001,0.0002372,3]
[328046346,1716816639940,-7596.3773095,0.0002372,3]
[328046348,1716816639953,-3374.1359825,0.0002372,3]
[328046564,1716816642044,-7149.64639184,0.0002372,3]
[328046566,1716816642053,-151.0,0.0002372,2]
[328046568,1716816642063,-366.160556,0.0002372,2]
[328046570,1716816642073,-366.160556,0.0002372,2]
[328046571,1716816642082,-151.0,0.0002372,2]
[328046573,1716816642092,-198.971098,0.0002372,2]
[328046576,1716816642105,-198.971098,0.0002372,2]
[328046577,1716816642114,-161.28126148,0.00023808,2]
[328046580,1716816642123,-1792.32762064,0.00023816,2]
[328046581,1716816642135,-503.01188397,0.00023816,2]
[328046582,1716816642146,-341.49574898,0.00023816,2]
[328046583,1716816642155,-410.85900029,0.00023817,2]
[328046585,1716816642164,-194.63259414,0.00023818,2]
[328046587,1716816642174,-231.02960299,0.00023818,2]
[328046588,1716816642184,-309.81411154,0.00023818,2]
[328046590,1716816642193,-1123.29780846,0.00023818,2]
[328046592,1716816642202,-193.98342938,0.00023818,2]
[328046595,1716816642214,-357.18406501,0.00023818,2]
[328046597,1716816642223,-181.5967108,0.00023818,2]
[328046599,1716816642234,-1870.13098848,0.00023818,2]
[328046601,1716816642243,-1899.42263675,0.00023818,2]
[328046603,1716816642253,-703.25759255,0.00023818,2]
[328046605,1716816642262,-215.87394328,0.00023818,2]
[328046607,1716816642271,-285.31097948,0.00023818,2]
[328046609,1716816642280,-3065.00544058,0.00023818,2]
[328046611,1716816642290,-720.62329532,0.00023818,2]
[328046613,1716816642299,-246.06345069,0.00023818,2]
[328046615,1716816642308,-184.42856408,0.00023818,2]
[328046617,1716816642318,-155.00775523,0.00023818,2]
[328046619,1716816642327,-155.06278816,0.00023818,2]
[328046621,1716816642336,-309.74719962,0.00023818,2]
[328046623,1716816642346,-516.69986204,0.00023818,2]
[328046625,1716816642357,-155.48527023,0.00023818,2]
[328046626,1716816642366,-2031.9,0.00023818,2]
[328046628,1716816642376,-151.0,0.00023818,2]
[328046631,1716816642385,-3156.06922925,0.0002382,7]
[328046632,1716816642394,-2900.13287437,0.0002382,2]
[328046636,1716816642415,-4287.93643651,0.0002382,10]
[328046638,1716816642426,-3982.37422665,0.0002382,2]
[328046640,1716816642436,-2597.59984325,0.0002382,2]
[328046642,1716816642447,-173.94460457,0.0002382,2]
[328046644,1716816642457,-151.0,0.0002382,2]
[328046646,1716816642467,-151.0,0.0002382,2]
[328046648,1716816642477,-151.0,0.0002382,2]
[328046650,1716816642486,-366.160556,0.0002382,2]
[328046653,1716816642497,-366.160556,0.0002382,2]
[328046655,1716816642507,-366.160556,0.0002382,2]
[328046657,1716816642517,-366.160556,0.0002382,2]
[328046659,1716816642527,-151.0,0.0002382,2]
[328046661,1716816642537,-198.971098,0.0002382,2]
[328046663,1716816642547,-198.971098,0.0002382,2]
[328046665,1716816642557,-16272.29636634,0.0002382,2]
[328046868,1716816644437,-1715.92634972,0.0002382,2]
[328046923,1716816644962,-7169.69589609,0.0002382,2]
[328046925,1716816644975,-513.58862906,0.0002382,2]
[328048424,1716816660980,364.75895387,6.5e-05,2]
[328048483,1716816671168,301.72923525,6.5e-05,2]
[328048486,1716816840177,3826.6670317,6.369e-05,2]
[328048493,1716817036717,24.77520747,7.191e-05,2]
[328048502,1716817088960,-758.41658575,7.185e-05,2]
[328048503,1716817088981,-521.6522892,7.185e-05,2]
[328048504,1716817089003,-524.43466535,7.185e-05,2]
[328048505,1716817089025,-1152.82161356,7.185e-05,2]
[328048506,1716817089046,-685.35873137,7.186e-05,2]
[328048507,1716817089067,-2116.85616365,7.186e-05,2]
[328048508,1716817089088,-154.95351395,7.186e-05,2]
[328048509,1716817089112,-2681.89337139,7.186e-05,2]
[328048510,1716817089133,-59460.83956525,7.186e-05,2]
[328048511,1716817089154,-529.12999576,7.187e-05,2]
[328048512,1716817089175,-371.68408208,7.187e-05,2]
[328048513,1716817089326,-10520.83000552,7.187e-05,2]
[328048514,1716817089348,-1583.26443295,7.188e-05,2]
[328048515,1716817089370,-316.74549754,7.188e-05,2]
[328048516,1716817089391,-1899.84369747,7.188e-05,2]
[328048517,1716817089414,-154.95351395,7.188e-05,2]
[328048518,1716817089435,-207.82716215,7.189e-05,2]
[328048519,1716817089457,-156.64393718,7.189e-05,2]
[328048520,1716817089478,-302.64967762,7.19e-05,2]
[328048521,1716817089500,-154.95351395,7.19e-05,2]
[328048522,1716817089523,-1490.82958923,7.191e-05,2]
[328048523,1716817089544,-281.85841065,7.263e-05,2]
[328048524,1716817089566,-239.06463388,7.263e-05,2]
[328048525,1716817089587,-9570.25477578,7.264e-05,2]
[328048526,1716817089609,-2109.54099947,7.264e-05,2]
[328048527,1716817089630,-154.95351395,7.264e-05,2]
[328048528,1716817089652,-1897.7460614,7.265e-05,2]
[328048541,1716817276467,291.99610679,5.321e-05,2]
[328048542,1716817338896,3376.24664759,5.321e-05,2]
[328048543,1716817358913,1173.4604615,5.321e-05,2]
[328048544,1716817387047,-529.12999576,7.006e-05,2]
[328048545,1716817387068,-156.8699674,7.006e-05,2]
[328048546,1716817387088,-1340.40220178,7.007e-05,2]
[328048547,1716817387108,-164.30390821,7.007e-05,2]
[328048548,1716817387127,-207.82716215,7.007e-05,2]
[328048549,1716817387147,-488.43267025,7.008e-05,2]
[328048550,1716817387167,-691.03459692,7.008e-05,2]
[328048551,1716817387188,-1498.23255871,7.009e-05,2]
[328048552,1716817387208,-962.56293886,7.009e-05,2]
[328048553,1716817387227,-181.63857615,7.009e-05,2]
[328048554,1716817387248,-156.58808866,7.009e-05,2]
[328048555,1716817387270,-194.67972622,7.009e-05,2]
[328048556,1716817387289,-410.95040232,7.01e-05,2]
[328048557,1716817387309,-371.68408208,7.01e-05,2]
[328048558,1716817387329,-2032.73517856,7.01e-05,2]
[328048559,1716817387353,-215.91037311,7.011e-05,2]
[328048560,1716817387372,-1979.63054003,7.011e-05,2]
[328048561,1716817387393,-551.27051016,7.011e-05,2]
[328048562,1716817387415,-281.85841065,7.012e-05,2]
[328048563,1716817387435,-154.95351395,7.012e-05,2]
[328048564,1716817387454,-2637.46785836,7.012e-05,2]
[328048565,1716817387475,-59460.83956525,7.012e-05,2]
[328048566,1716817387589,-758.41658575,7.013e-05,2]
[328048567,1716817387610,-2109.54099947,7.013e-05,2]
[328048568,1716817387631,-302.64967762,7.013e-05,2]
[328048569,1716817387652,-685.35873137,7.013e-05,2]
[328048570,1716817387674,-1498.23255871,7.013e-05,2]
[328048571,1716817387694,-231.08206128,7.013e-05,2]
[328048572,1716817387715,-19271.11228777,7.015e-05,2]
[328048573,1716817387734,-371.68408208,7.018e-05,2]
[328048574,1716817387757,-175.78295392,7.095e-05,2]
[328048575,1716817387778,-1126.70371013,7.184e-05,2]
[328048576,1716817387798,-6528.76697585,7.263e-05,2]
[328048577,1716817387818,-751.11399322,7.264e-05,2]
[328048578,1716817387837,-211.45549711,7.264e-05,2]
[328048579,1716817387857,-309.87229516,7.264e-05,2]
[328048580,1716817387877,-316.60621238,7.264e-05,2]
[328048581,1716817387896,-521.94946032,7.265e-05,2]
[328048582,1716817387915,-224.73843168,7.265e-05,2]
[328048583,1716817387935,-154.95351395,7.266e-05,2]
[328048584,1716817387954,-604.24750955,7.267e-05,2]
[328048585,1716817387975,-7902.84031323,7.269e-05,2]
[328048586,1716817387994,-1273.88932391,7.272e-05,2]
[328048587,1716817488376,-156.8699674,6.931e-05,2]
[328048588,1716817488399,-7843.1300326,6.931e-05,2]
[328048636,1716817832765,-164.30390821,6.759e-05,2]
[328048637,1716817832775,-2109.54099947,6.759e-05,2]
[328048638,1716817832785,-302.64967762,6.759e-05,2]
[328048639,1716817832795,-371.68408208,6.759e-05,2]
[328048640,1716817832806,-1340.40220178,6.76e-05,2]
[328048641,1716817832816,-2681.89337139,6.76e-05,2]
[328048642,1716817832826,-1979.63054003,6.76e-05,2]
[328048643,1716817832836,-1902.01092962,6.761e-05,2]
[328048644,1716817832846,-1044.43060742,6.761e-05,2]
[328048645,1716817832856,-685.35873137,6.761e-05,2]
[328048646,1716817832866,-3065.55842789,6.762e-05,2]
[328048647,1716817832876,-455.97225656,6.762e-05,2]
[328048648,1716817832887,-395.78104217,6.762e-05,2]
[328048649,1716817832896,-836.46602351,6.762e-05,2]
[328048650,1716817832907,-231.08206128,6.762e-05,2]
[328048651,1716817832917,-524.43466535,6.763e-05,2]
[328048652,1716817832927,-215.91037311,6.764e-05,2]
[328048653,1716817832937,-156.8699674,6.764e-05,2]
[328048654,1716817832948,-917.08791391,6.764e-05,2]
[328048655,1716817832958,-54532.22369889,6.765e-05,2]
[328048656,1716817832971,-568.53218339,6.765e-05,2]
[328048657,1716817832984,-691.77,6.765e-05,2]
[328048658,1716817832998,-7118.84735164,6.765e-05,2]
[328048659,1716817833008,-1234.9659755,6.766e-05,2]
[328048679,1716817839250,-2898.14053718,6.766e-05,2]
[328048681,1716817839261,-3284.76898273,6.844e-05,2]
[328048688,1716817839386,-38729.93788884,6.844e-05,2]
[328048689,1716817839395,-41700.57460437,6.845e-05,2]
[328048690,1716817839405,-7902.84031323,6.926e-05,2]
[328048691,1716817839416,-906.01351319,6.931e-05,2]
[328048692,1716817839426,-8738.31739219,6.931e-05,2]
[328048693,1716817839436,-280.04164012,6.94e-05,2]
[328048694,1716817839446,-489.91239003,7.269e-05,2]
[328048695,1716817839455,-181.5967108,7.27e-05,2]
[328048696,1716817839465,-530.95383861,7.27e-05,2]
[328048697,1716817839475,-761.22774133,7.27e-05,2]
[328048698,1716817839488,-551.06447862,7.27e-05,2]
[328048699,1716817839497,-14809.99479178,7.271e-05,2]
[328048700,1716817839507,-281.72074989,7.271e-05,2]
[328048701,1716817839516,-299.18890464,7.271e-05,2]
[328048702,1716817839527,-9796.95331882,7.272e-05,2]
[328048703,1716817839537,-309.75220134,7.37e-05,2]
[328048704,1716817839546,-204.5269231,7.371e-05,2]
[328048705,1716817839683,-24900.0,7.397e-05,2]
[328048706,1716817839696,-156.33757926,7.46e-05,2]
[328048707,1716817839706,-309.86062544,7.46e-05,2]
[328048708,1716817839717,-155.0,7.46e-05,2]
[328048709,1716817839726,-309.79865023,7.46e-05,2]
[328048710,1716817839736,-189.53496638,7.461e-05,2]
[328048711,1716817839747,-640.59988326,7.461e-05,2]
[328048712,1716817839757,-156.56609764,7.461e-05,2]
[328048713,1716817839766,-309.81411154,7.461e-05,2]
[328048714,1716817839776,-369.6811618,7.462e-05,2]
[328048715,1716817839786,-9408.97315609,0.0001,2]
[328048716,1716817839797,-321.9,0.00010959,2]
[328048717,1716817839807,-268.25,0.00010959,2]
[328048718,1716817839816,-223.54,0.00010959,2]
[328048719,1716817839826,-186.28,0.00010959,2]
[328048720,1716817839836,-155.24,0.00010959,2]
[328048721,1716817839846,-776.21,0.00010959,2]
[328048722,1716817839856,-557.56665575,0.000205,5]
[328048723,1716817839866,-703.25759255,0.00020912,2]
[328048724,1716817839875,-227.51490603,0.00020912,2]
[328048725,1716817839885,-208.11563341,0.00020912,2]
[328048726,1716817839895,-189.66516889,0.00020912,2]
[328048727,1716817839905,-166.24017904,0.00020912,2]
[328048728,1716817839916,-632.30329456,0.00020912,2]
[328048729,1716817839927,-238.58491264,0.00020912,7]